bitfinex/quotes_SOLUSD_20250102
["timestamp","ask_amount","ask_price","bid_price","bid_amount"]
[1735786162971,6.2903,199.19,199.1,0.75303305]
[1735786163347,6.2903,199.19,199.11,23.776884]
[1735786164877,20.0,199.16,199.11,23.776884]
[1735786165088,1.6476,199.15,199.06,9.7060485]
[1735786165450,1.6476,199.15,199.08,23.776884]
[1735786166749,1.6476,199.15,199.05,0.75329335]
[1735786167366,1.6476,199.15,199.06,23.776884]
[1735786167745,1.6476,199.15,199.02,33.4829325]
[1735786167958,1.6476,199.15,199.04,23.776884]
[1735786168360,6.5396,199.14,199.03,0.7533632]
[1735786168560,6.5396,199.09,198.96,134.8]
[1735786168765,6.5396,199.09,198.97,0.75358412]
[1735786169560,6.5396,199.09,198.98,23.776884]
[1735786169749,6.5396,199.09,198.97,10.45963262]
[1735786170672,6.5396,199.09,198.98,23.776884]
[1735786170873,6.5396,199.09,199.0,23.776884]
[1735786171881,6.5396,199.09,198.97,23.776884]
[1735786172078,20.0,199.06,198.97,24.53049345]
[1735786172373,20.0,199.06,198.97,34.23654195]
[1735786173151,20.0,199.06,198.97,24.53049345]
[1735786173353,6.5396,199.04,198.94,0.7536188]
[1735786173554,6.5396,199.04,198.94,10.4596673]
[1735786173778,6.5396,199.04,198.95,23.776884]
[1735786174462,6.5396,199.04,198.95,33.4829325]
[1735786174657,6.5396,199.04,198.95,34.23660831]
[1735786175074,6.5396,199.04,198.97,23.776884]
[1735786176363,6.5396,199.04,198.97,33.4829325]
[1735786176765,6.5396,199.04,198.97,23.776884]
[1735786176962,20.0,199.01,198.93,0.75367734]
[1735786177173,20.0,199.01,198.93,10.45972584]
[1735786177383,20.0,199.01,198.94,23.776884]
[1735786177571,20.0,199.01,198.94,33.4829325]
[1735786178559,20.0,199.01,198.95,9.7060485]
[1735786178971,20.0,199.01,198.96,23.776884]
[1735786179164,20.0,199.01,198.94,9.7060485]
[1735786180086,20.0,199.01,198.95,23.776884]
[1735786181789,20.0,199.01,198.94,23.776884]
[1735786182167,1.5134,199.0,198.92,9.7060485]
[1735786182576,1.5134,199.0,198.91,33.4829325]
[1735786183584,1.5134,199.0,198.9,9.7060485]
[1735786183786,1.5134,199.0,198.91,23.776884]
[1735786184092,1.5134,199.0,198.91,33.4829325]
[1735786186790,1.5134,199.0,198.93,23.776884]
[1735786187000,1.5134,199.0,198.93,33.4829325]
[1735786187286,1.5134,199.0,198.96,9.7060485]
[1735786187599,1.5134,199.0,198.98,23.776884]
[1735786188165,1.6371,199.07,199.0,23.776884]
[1735786188359,1.6371,199.07,199.0,33.4829325]
[1735786188564,1.6371,199.07,199.02,23.776884]
[1735786189567,1.6371,199.07,199.02,33.4829325]
[1735786189784,7.88717979,199.21,199.04,9.7060485]
[1735786189785,7.8373,199.12,199.04,9.7060485]
[1735786189988,7.8373,199.12,199.06,23.776884]
[1735786190789,7.8373,199.12,199.05,23.776884]
[1735786191167,7.8373,199.12,199.0,38.824194]
[1735786191370,7.8373,199.12,199.02,9.7060485]
[1735786191583,7.8373,199.12,199.03,23.776884]
[1735786191969,7.8373,199.12,199.03,34.23634136]
[1735786193186,20.0,199.09,199.0,9.7060485]
[1735786193566,20.0,199.09,199.01,23.776884]
[1735786194993,20.0,199.09,198.99,33.4829325]
[1735786195291,20.0,199.09,199.01,23.776884]
[1735786198391,20.0,199.09,199.0,23.776884]
[1735786199401,20.0,199.09,198.99,23.776884]
[1735786199779,1.6632,199.08,198.93,147.3669]
[1735786200095,6.0529,199.07,198.97,23.776884]
[1735786201189,6.0529,199.07,198.97,33.4829325]
[1735786202900,7.7161,199.03,198.9,9.7060485]
[1735786203306,7.7161,199.03,198.91,23.776884]
[1735786204480,7.7161,199.03,198.91,9.7060485]
[1735786204687,7.7161,199.03,198.93,23.776884]
[1735786205802,20.0,199.0,198.93,23.776884]
[1735786206015,7.7161,199.03,198.97,23.776884]
[1735786207001,7.7161,199.03,198.97,33.4829325]
[1735786207303,7.7161,199.03,198.99,23.776884]
[1735786207604,1.6632,199.03,198.99,23.776884]
[1735786208184,6.4673,199.02,198.91,15.21188439]
[1735786208600,6.4673,199.02,198.92,23.776884]
[1735786208798,4.1717,199.02,198.92,23.776884]
[1735786209004,4.1717,199.02,198.92,25.03781426]
[1735786209197,4.1717,199.02,198.92,40.24969865]
[1735786210007,4.1717,199.02,198.94,23.776884]
[1735786210511,4.1717,199.02,198.92,15.21188439]
[1735786210687,4.1717,199.02,198.92,15.96565054]
[1735786211104,4.1717,199.02,198.93,38.98876839]
[1735786211314,4.1717,199.02,198.92,0.75376615]
[1735786211315,1.6632,199.03,198.97,15.21188439]
[1735786211607,1.6632,199.03,198.99,23.776884]
[1735786211812,1.6632,199.03,198.94,1.26063804]
[1735786212004,6.4673,199.02,198.95,23.776884]
[1735786212514,6.4673,199.02,198.95,25.79129356]
[1735786213006,6.4673,199.02,198.97,23.776884]
[1735786213793,6.4673,199.02,198.96,23.776884]
[1735786215123,6.4673,199.02,198.95,23.776884]
[1735786215486,6.4673,199.02,198.91,15.96561187]
[1735786215915,6.4673,199.02,198.92,38.98876839]
[1735786216117,6.4673,199.02,198.94,23.776884]
[1735786217017,6.4673,199.02,198.95,1.26081238]
[1735786217711,6.4673,199.02,198.94,23.776884]
[1735786218014,6.4673,199.02,198.95,0.75377755]
[1735786218915,6.4673,199.02,198.97,23.776884]
[1735786219124,6.4673,199.02,198.97,24.53053182]
[1735786219592,6.4673,199.02,198.99,23.776884]
[1735786220487,1.6632,199.03,198.97,23.776884]
[1735786220730,1.6632,199.03,198.99,23.776884]
[1735786224998,1.6632,199.03,198.95,134.8]
[1735786225197,1.6632,199.03,198.96,23.776884]
[1735786225720,1.6632,199.03,198.97,1.26061191]
[1735786226218,1.6632,199.03,198.98,23.776884]
[1735786226421,1.6632,199.03,198.98,25.03749591]
[1735786226820,1.6632,199.03,198.98,1.26061191]
[1735786227119,1.6632,199.03,198.95,23.776884]
[1735786227823,1.6632,199.03,198.96,1.26065779]
[1735786228321,1.6632,199.03,198.97,23.776884]
[1735786228627,1.6632,199.03,198.97,25.03754179]
[1735786229301,1.6632,199.03,198.95,10.48627262]
[1735786229302,1.6632,199.03,198.96,23.776884]
[1735786230301,1.6632,199.03,198.97,10.48622145]
[1735786230721,1.6632,199.03,198.97,11.74682054]
[1735786231522,1.6632,199.03,198.99,23.776884]
[1735786232047,1.6632,199.03,198.99,24.53044458]
[1735786233033,6.4673,199.07,199.03,23.776884]
[1735786233034,1.6408,199.07,199.03,23.776884]
[1735786233206,1.6408,199.07,199.05,23.776884]
[1735786233407,8.1042,199.12,199.04,0.75333107]
[1735786233603,8.1042,199.12,199.0,21.26049827]
[1735786233827,8.1042,199.12,199.02,23.776884]
[1735786234134,8.1042,199.12,199.04,23.776884]
[1735786235025,8.1042,199.12,199.06,23.776884]
[1735786235836,8.1042,199.12,199.04,23.776884]
[1735786236437,8.1042,199.12,199.06,23.776884]
[1735786236828,8.1042,199.12,199.03,9.73256364]
[1735786237034,8.1042,199.12,199.02,29.73256364]
[1735786237344,1.5774,199.08,199.04,1.26009198]
[1735786238128,1.5774,199.08,198.99,10.48612627]
[1735786238319,1.5774,199.08,198.99,0.75356263]
[1735786238833,1.5774,199.08,199.01,23.776884]
[1735786239430,1.5774,199.08,199.0,23.776884]
[1735786239820,1.5774,199.08,199.01,1.26037225]
[1735786240670,1.5774,199.08,199.03,23.776884]
[1735786241241,1.5774,199.08,199.0,23.776884]
[1735786242118,1.5774,199.08,199.01,1.26042072]
[1735786242821,1.5774,199.08,199.0,23.776884]
[1735786243641,1.5774,199.08,198.98,23.08682356]
[1735786243813,1.5774,199.08,198.98,15.19964356]
[1735786244019,1.5774,199.08,198.99,25.03735228]
[1735786244638,6.2308,199.07,198.99,1.26046828]
[1735786244843,6.2308,199.07,199.0,1.26046828]
[1735786245520,6.2308,199.07,198.98,23.776884]
[1735786246344,6.2308,199.07,198.95,15.19964356]
[1735786246741,6.2308,199.07,198.96,23.776884]
[1735786246945,6.2308,199.07,198.96,25.79120816]
[1735786247142,6.2308,199.07,198.98,38.97652756]
[1735786247459,6.2308,199.07,199.0,23.776884]
[1735786248256,6.2308,199.07,199.0,38.97652756]
[1735786248554,6.2308,199.07,199.0,39.73004448]
[1735786249264,6.2308,199.07,199.02,23.776884]
[1735786250837,6.2308,199.07,198.99,15.19964356]
[1735786251556,6.2308,199.07,199.01,23.776884]
[1735786252459,6.2308,199.07,199.0,23.776884]
[1735786253050,6.2308,199.07,199.0,24.53044932]
[1735786255848,6.2308,199.07,199.01,1.26043782]
[1735786256652,6.2308,199.07,199.03,23.776884]
[1735786257451,6.2308,199.07,199.0,23.776884]
[1735786257648,6.2308,199.07,199.02,23.776884]
[1735786259158,6.2308,199.07,199.03,1.26038328]
[1735786259542,6.2308,199.07,199.01,23.776884]
[1735786260461,6.2308,199.07,199.02,1.26039167]
[1735786261362,6.2308,199.07,199.03,1.26039167]
[1735786261538,6.2308,199.07,199.04,23.776884]
[1735786262153,6.2308,199.07,199.03,23.776884]
[1735786262961,6.2308,199.07,199.04,1.26027825]
[1735786263434,6.2308,199.07,199.02,23.776884]
[1735786265057,6.2308,199.07,199.03,1.26039962]
[1735786265863,6.2308,199.07,199.02,23.776884]
[1735786267472,6.2308,199.07,199.03,1.26038855]
[1735786268198,1.5774,199.08,199.02,9.72736137]
[1735786268464,1.5774,199.08,199.05,23.776884]
[1735786268653,1.5774,199.08,199.06,0.75329524]
[1735786269643,1.5774,199.08,199.07,1.2601241]
[1735786271866,1.5774,199.08,199.06,0.75329524]
[1735786272646,1.5774,199.08,199.04,0.75334237]
[1735786272969,1.5774,199.08,199.0,135.55342252]
[1735786273267,1.5774,199.08,199.05,1.26017428]
[1735786273443,1.5774,199.08,199.03,24.53029979]
[1735786274054,1.5774,199.08,199.0,144.52736137]
[1735786274476,1.5774,199.08,199.01,0.75350638]
[1735786274679,1.5774,199.08,199.01,2.01375217]
[1735786275190,1.5774,199.08,199.02,23.776884]
[1735786275481,1.5774,199.08,199.02,25.03712979]
[1735786276179,1.5774,199.08,199.03,1.26024579]
[1735786276967,1.5774,199.08,199.04,1.26024579]
[1735786277581,1.5774,199.08,199.05,1.26024579]
[1735786278290,1.5774,199.08,199.02,23.776884]
[1735786278883,1.5774,199.08,199.03,9.14741836]
[1735786279401,1.5774,199.08,199.04,1.26023836]
[1735786280092,1.5774,199.08,199.05,1.26023836]
[1735786280890,1.5774,199.08,199.02,31.664063]
[1735786281578,1.5774,199.08,199.03,1.26022911]
[1735786282091,1.5774,199.08,199.04,1.26022911]
[1735786282977,1.5774,199.08,199.05,1.26022911]
[1735786283503,1.5774,199.08,199.02,24.53032469]
[1735786284072,1.5774,199.08,199.03,1.26022972]
[1735786284998,1.5774,199.08,199.02,24.53032469]
[1735786285899,1.5774,199.08,199.01,7.88718]
[1735786286400,1.5774,199.08,199.02,1.26039292]
[1735786286995,1.5774,199.08,199.01,7.88718]
[1735786288395,1.5774,199.08,199.02,1.26038924]
[1735786288991,1.5774,199.08,199.01,7.88718]
[1735786292085,1.5774,199.08,199.0,23.776884]
[1735786292491,1.5774,199.08,199.01,1.26039502]
[1735786293104,1.5774,199.08,199.02,1.26039502]
[1735786293680,1.5774,199.08,199.03,1.26039502]
[1735786294599,1.5774,199.08,199.0,23.776884]
[1735786295392,1.5774,199.08,199.01,1.26039563]
[1735786296201,1.5774,199.08,199.0,23.776884]
[1735786296390,1.5774,199.08,199.01,0.75354181]
[1735786297310,1.5774,199.08,199.02,1.26046442]
[1735786297885,1.5774,199.08,199.01,0.75354181]
[1735786299402,1.5774,199.08,199.02,1.2604638]
[1735786300103,1.5774,199.08,199.0,23.776884]
[1735786300411,21.5774,199.08,199.0,23.776884]
[1735786300599,21.5774,199.08,199.01,1.26053598]
[1735786301193,21.5774,199.08,198.98,43.910111]
[1735786302211,21.5774,199.08,199.0,23.776884]
[1735786303016,21.5774,199.08,198.99,23.776884]
[1735786303612,21.5774,199.08,199.0,1.26055942]
[1735786304309,21.5774,199.08,198.99,23.776884]
[1735786305418,21.5774,199.08,199.0,1.26059177]
[1735786306092,21.5774,199.08,198.99,23.776884]
[1735786307518,20.0,199.07,198.99,24.53044482]
[1735786308234,20.0,199.07,199.0,1.26055972]
[1735786309005,21.5774,199.08,198.99,24.53044482]
[1735786310620,21.5774,199.08,199.0,1.26055942]
[1735786311320,21.5774,199.08,198.99,24.53044482]
[1735786312914,21.5774,199.08,199.0,1.260506]
[1735786313603,21.5774,199.08,199.01,1.260506]
[1735786313927,1.5774,199.08,199.01,1.260506]
[1735786314426,1.5774,199.08,198.99,24.53044482]
[1735786315006,1.5774,199.08,198.99,34.25780619]
[1735786315222,1.5774,199.08,199.01,23.776884]
[1735786315528,1.5774,199.08,199.01,24.53034247]
[1735786315929,1.5774,199.08,199.02,1.26053189]
[1735786316514,1.5774,199.08,199.03,1.26053189]
[1735786317134,1.5774,199.08,199.04,23.776884]
[1735786317312,1.5774,199.08,199.06,23.776884]
[1735786318242,1.5774,199.08,199.07,1.26053189]
[1735786318706,1.5774,199.08,199.03,9.72736137]
[1735786318908,1.5774,199.08,199.04,23.776884]
[1735786319434,1.5774,199.08,199.05,1.26022561]
[1735786320138,1.5774,199.08,199.04,34.25766311]
[1735786320333,1.5774,199.08,199.04,23.776884]
[1735786320633,1.5774,199.08,199.02,0.75340794]
[1735786320929,1.5774,199.08,199.01,9.72736137]
[1735786321129,1.5774,199.08,199.01,23.776884]
[1735786321514,1.5774,199.08,199.01,9.72736137]
[1735786321718,1.5774,199.08,199.02,25.03731142]
[1735786322330,1.5774,199.08,199.02,23.776884]
[1735786325443,1.5774,199.08,199.01,9.72736137]
[1735786325633,1.5774,199.08,199.0,9.72736137]
[1735786326221,1.5774,199.08,199.01,1.26044773]
[1735786326737,1.5774,199.08,199.0,33.50424537]
[1735786326954,1.5774,199.08,199.01,23.776884]
[1735786327642,1.5774,199.08,199.02,1.26044967]
[1735786328343,1.5774,199.08,199.01,23.776884]
[1735786331137,1.5774,199.08,199.01,33.50424537]
[1735786331953,1.5774,199.08,199.02,1.26043244]
[1735786332534,1.5774,199.08,199.03,1.26043244]
[1735786333322,1.5774,199.08,199.02,9.72736137]
[1735786334221,1.5774,199.08,199.03,9.72736137]
[1735786334755,1.5774,199.08,199.04,1.26029553]
[1735786335318,1.5774,199.08,199.03,9.72736137]
[1735786336451,1.5774,199.08,199.04,1.26028462]
[1735786337648,1.5774,199.08,199.03,23.776884]
[1735786338933,1.5774,199.08,199.04,1.26027779]
[1735786339631,1.5774,199.08,199.03,23.776884]
[1735786339936,1.5774,199.08,199.03,33.50424537]
[1735786340448,1.5774,199.08,199.04,10.48073884]
[1735786341253,1.5774,199.08,199.05,1.26027504]
[1735786341444,1.5774,199.08,199.06,23.776884]
[1735786343334,7.7526,199.12,199.07,1.26011841]
[1735786343625,7.91611318,199.17,199.1,9.72736137]
[1735786343847,9.54801318,199.17,199.07,1.26011841]
[1735786344083,20.0,199.14,199.08,1.26011841]
[1735786344658,20.0,199.14,199.06,9.72736137]
[1735786344877,20.0,199.15,199.06,9.72736137]
[1735786348444,1.6319,199.17,199.07,9.72736137]
[1735786348662,1.6319,199.17,199.12,9.72736137]
[1735786350103,7.91611318,199.19,199.14,9.72736137]
[1735786350606,9.54801318,199.22,199.14,9.72736137]
[1735786352319,1.6319,199.22,199.14,9.72736137]
[1735786352476,20.0,199.2,199.13,23.776884]
[1735786353560,1.6319,199.22,199.13,33.50424537]
[1735786353881,1.6319,199.22,199.13,34.25727893]
[1735786354881,1.6319,199.22,199.14,9.72736137]
[1735786355377,1.1319,199.22,199.14,9.72736137]
[1735786360284,1.1319,199.22,199.15,23.776884]
[1735786360459,1.1319,199.22,199.15,33.50424537]
[1735786361690,20.0,199.25,199.16,23.776884]
[1735786362061,20.0,199.25,199.16,33.50424537]
[1735786362363,20.0,199.26,199.16,33.50424537]
[1735786365291,20.0,199.26,199.16,9.72736137]
[1735786365489,20.0,199.26,199.14,9.72736137]
[1735786365807,20.0,199.26,199.15,23.776884]
[1735786366698,20.0,199.26,199.15,9.72736137]
[1735786367178,20.0,199.26,199.15,33.50424537]
[1735786368581,20.0,199.26,199.16,23.776884]
[1735786369188,20.0,199.26,199.16,9.72736137]
[1735786372295,20.0,199.26,199.16,10.48026765]
[1735786372494,20.0,199.26,199.18,23.776884]
[1735786373400,1.6124,199.27,199.18,10.48022913]
[1735786375003,1.6124,199.27,199.2,23.776884]
[1735786376309,1.6124,199.27,199.18,9.72736137]
[1735786377006,1.6124,199.27,199.18,33.50424537]
[1735786377307,1.6124,199.27,199.19,23.776884]
[1735786377676,1.6124,199.27,199.19,9.72736137]
[1735786378399,1.6124,199.27,199.19,10.48015669]
[1735786379072,1.6659,199.33,199.19,10.48015669]
[1735786379377,20.0,199.31,199.17,24.52969438]
[1735786379587,1.6659,199.33,199.17,24.52969438]
[1735786379588,20.0,199.27,199.17,24.52969438]
[1735786379798,20.0,199.27,199.17,34.25705575]
[1735786381603,20.0,199.27,199.17,33.50424537]
[1735786383102,20.0,199.27,199.17,9.72736137]
[1735786387114,20.0,199.27,199.18,9.72736137]
[1735786388728,20.0,199.27,199.19,23.776884]
[1735786388895,8.2447,199.3,199.19,33.50424537]
[1735786389997,8.2447,199.3,199.2,23.776884]
[1735786390509,8.2447,199.3,199.22,33.50424537]
[1735786390907,8.2447,199.3,199.22,23.776884]
[1735786391911,8.2447,199.3,199.21,9.72736137]
[1735786392300,8.2447,199.3,199.22,23.776884]
[1735786393119,8.2447,199.3,199.22,33.50424537]
[1735786397119,8.2447,199.3,199.19,0.75277522]
[1735786397433,8.2447,199.3,199.21,9.72736137]
[1735786405639,8.2447,199.3,199.2,9.72736137]
[1735786405816,8.2447,199.3,199.2,33.50424537]
[1735786408528,8.2447,199.3,199.2,23.776884]
[1735786408834,8.2447,199.3,199.2,33.50424537]
[1735786411239,8.2447,199.3,199.17,0.75278311]
[1735786411425,8.2447,199.3,199.18,9.72736137]
[1735786411620,8.2447,199.3,199.18,10.98663531]
[1735786412224,8.2447,199.3,199.19,1.25927394]
[1735786412424,20.0,199.27,199.19,1.25927394]
[1735786412647,1.5609,199.26,199.17,9.72736137]
[1735786414441,1.5609,199.26,199.15,23.776884]
[1735786414642,1.5609,199.26,199.17,9.72736137]
[1735786415754,20.0,199.27,199.2,9.72736137]
[1735786417133,20.0,199.27,199.19,9.72736137]
[1735786419747,6.5788,199.3,199.2,9.72736137]
[1735786419945,6.5788,199.3,199.2,10.98667398]
[1735786420552,6.5788,199.3,199.2,9.72736137]
[1735786424554,6.5788,199.3,199.19,0.7527965]
[1735786424555,6.5788,199.3,199.22,9.72736137]
[1735786425961,6.5788,199.3,199.23,23.776884]
[1735786426157,6.5788,199.3,199.23,33.50424537]
[1735786426555,6.5788,199.3,199.23,9.72736137]
[1735786427048,6.5788,199.3,199.21,24.52962849]
[1735786427253,6.5788,199.3,199.21,9.72736137]
[1735786427553,6.5788,199.3,199.22,10.98650373]
[1735786428357,6.5788,199.3,199.22,9.72736137]
[1735786428658,7.93330447,199.28,199.22,9.72736137]
[1735786428862,7.93330447,199.28,199.22,33.50424537]
[1735786429361,6.5788,199.3,199.22,33.50424537]
[1735786430067,14.51210447,199.3,199.22,33.50424537]
[1735786431860,6.5788,199.3,199.22,33.50424537]
[1735786432441,14.51210447,199.3,199.22,33.50424537]
[1735786432843,14.51210447,199.3,199.22,23.776884]
[1735786435880,0.04527087,199.29,199.22,23.776884]
[1735786436243,0.04527087,199.29,199.19,0.75272691]
[1735786436444,0.04527087,199.29,199.2,9.72736137]
[1735786436649,0.04527087,199.29,199.2,33.50424537]
[1735786437578,0.04527087,199.29,199.21,1.25920872]
[1735786438159,0.04527087,199.29,199.22,1.25920872]
[1735786438473,1.5542,199.28,199.22,1.25920872]
[1735786438777,1.5542,199.28,199.18,9.72736137]
[1735786439479,1.5542,199.28,199.19,1.25926262]
[1735786440197,1.5542,199.28,199.2,1.25926262]
[1735786440893,9.48750447,199.28,199.19,9.72736137]
[1735786442470,9.48750447,199.28,199.2,1.25931921]
[1735786442989,9.48750447,199.28,199.19,9.72736137]
[1735786444249,9.48750447,199.28,199.2,1.25931237]
[1735786445174,9.48750447,199.28,199.19,9.72736137]
[1735786446378,9.48750447,199.28,199.2,1.25931316]
[1735786447162,1.5542,199.28,199.2,1.25931316]
[1735786447367,1.5542,199.28,199.19,9.72736137]
[1735786448690,1.5542,199.28,199.2,1.25931896]
[1735786449186,1.5542,199.28,199.19,9.72736137]
[1735786450567,1.5542,199.28,199.2,1.25931794]
[1735786450985,1.5542,199.28,199.19,9.72736137]
[1735786451379,20.0,199.26,199.16,0.75287444]
[1735786451688,20.0,199.26,199.19,9.72736137]
[1735786452496,20.0,199.26,199.2,1.25932666]
[1735786453186,20.0,199.26,199.19,9.72736137]
[1735786453477,0.04527087,199.27,199.19,9.72736137]
[1735786455191,0.04527087,199.27,199.2,9.72736137]
[1735786455561,0.04527087,199.27,199.2,10.98668745]
[1735786456185,0.04527087,199.27,199.2,9.72736137]
[1735786459489,0.04527087,199.27,199.18,0.7528536]
[1735786459490,0.04527087,199.27,199.19,33.50424537]
[1735786459887,0.04527087,199.27,199.2,1.25931926]
[1735786460273,0.04527087,199.27,199.2,10.98668063]
[1735786460477,0.04527087,199.27,199.2,9.72736137]
[1735786460669,0.04527087,199.27,199.19,34.25705251]
[1735786461090,0.04527087,199.27,199.19,10.48016851]
[1735786461293,0.04527087,199.27,199.19,9.72736137]
[1735786461796,0.04527087,199.27,199.2,1.25930812]
[1735786462799,0.04527087,199.27,199.19,9.72736137]
[1735786464305,0.04527087,199.27,199.2,1.25936393]
[1735786464998,0.04527087,199.27,199.19,9.72736137]
[1735786466473,9.48750447,199.28,199.19,9.72736137]
[1735786467601,0.04527087,199.27,199.19,9.72736137]
[1735786471403,0.04527087,199.27,199.2,1.25931917]
[1735786472201,0.04527087,199.27,199.2,23.776884]
[1735786476506,0.04527087,199.27,199.19,10.48014858]
[1735786476703,0.04527087,199.27,199.19,9.72736137]
[1735786477086,0.04527087,199.27,199.2,1.25932501]
[1735786477989,0.04527087,199.27,199.21,1.25932501]
[1735786478685,0.04527087,199.27,199.19,10.48018049]
[1735786479195,0.04527087,199.27,199.19,9.72736137]
[1735786479397,0.04527087,199.27,199.2,1.2593142]
[1735786480307,0.04527087,199.27,199.21,1.2593142]
[1735786480933,0.04527087,199.27,199.19,10.48016612]
[1735786481091,0.04527087,199.27,199.19,9.72736137]
[1735786481813,0.04527087,199.27,199.2,1.25931232]
[1735786482108,9.48750447,199.28,199.2,1.25931232]
[1735786482293,9.48750447,199.28,199.21,1.25931232]
[1735786483112,9.48750447,199.28,199.19,9.72736137]
[1735786483299,0.04527087,199.27,199.19,9.72736137]
[1735786483901,0.04527087,199.27,199.2,1.25931294]
[1735786484503,0.04527087,199.27,199.21,1.25931294]
[1735786485400,0.04527087,199.27,199.19,10.4801757]
[1735786485598,0.04527087,199.27,199.19,9.72736137]
[1735786486195,0.04527087,199.27,199.2,1.25931294]
[1735786486804,0.04527087,199.27,199.21,1.25931294]
[1735786487418,0.04527087,199.27,199.19,10.48017547]
[1735786487716,0.04527087,199.27,199.19,9.72736137]
[1735786488112,7.97857534,199.27,199.19,9.72736137]
[1735786488314,7.97857534,199.27,199.2,1.25931232]
[1735786489020,7.97857534,199.27,199.19,9.72736137]
[1735786489718,7.97857534,199.27,199.16,0.75283213]
[1735786489719,7.97857534,199.27,199.17,23.776884]
[1735786489918,7.97857534,199.27,199.18,10.48019874]
[1735786490095,7.97857534,199.27,199.16,0.75289426]
[1735786490301,7.97857534,199.27,199.17,1.25932746]
[1735786490617,7.97857534,199.27,199.17,10.98668883]
[1735786491198,7.97857534,199.27,199.18,1.25932746]
[1735786491926,7.97857534,199.27,199.19,1.25932746]
[1735786492112,7.6174,199.26,199.19,1.25932746]
[1735786492299,1.6345,199.25,199.19,1.25932746]
[1735786492701,20.0,199.23,199.14,9.72736137]
[1735786493019,7.93330447,199.22,199.14,9.72736137]
[1735786493905,27.93330447,199.23,199.14,9.72736137]
[1735786494923,27.93330447,199.23,199.15,9.72736137]
[1735786495531,7.93330447,199.23,199.17,9.72736137]
[1735786495935,7.93330447,199.23,199.16,0.7530215]
[1735786496201,7.93330447,199.23,199.17,9.72736137]
[1735786496401,7.93330447,199.24,199.18,9.72736137]
[1735786496628,7.93330447,199.24,199.2,23.776884]
[1735786496847,7.93330447,199.24,199.2,33.50424537]
[1735786497025,1.6345,199.25,199.2,33.50424537]
[1735786497846,1.6345,199.25,199.21,9.72736137]
[1735786498015,1.6345,199.25,199.22,9.72736137]
[1735786499135,1.6345,199.25,199.21,10.48011269]
[1735786499439,0.04527087,199.24,199.21,10.48011269]
[1735786500319,0.04527087,199.24,199.22,33.50424537]
[1735786500644,0.04527087,199.24,199.23,24.52951827]
[1735786501029,0.04527087,199.24,199.23,34.25687964]
[1735786501913,0.04527087,199.24,199.23,24.52951827]
[1735786502116,0.04527087,199.24,199.23,34.25687964]
[1735786502345,0.04527087,199.24,199.23,181.60517964]
[1735786502547,0.04527087,199.24,199.23,180.85254537]
[1735786510247,0.04527087,199.24,199.23,147.3483]
[1735786510433,0.04527087,199.24,199.23,157.07566137]
[1735786510959,0.04527087,199.24,199.23,180.85254537]
[1735786511441,0.04527087,199.24,199.23,46.05254537]
[1735786511635,0.04527087,199.24,199.23,46.80508727]
[1735786514334,1.6345,199.35,199.24,23.776884]
[1735786514644,1.6345,199.35,199.26,33.50424537]
[1735786515427,0.04527087,199.34,199.26,23.776884]
[1735786515624,0.04527087,199.34,199.26,33.50424537]
[1735786519147,0.04527087,199.34,199.28,23.776884]
[1735786523568,0.04527087,199.34,199.28,33.50424537]
[1735786524441,0.04527087,199.34,199.28,23.776884]
[1735786525254,0.04527087,199.34,199.28,33.50424537]
[1735786525754,0.04527087,199.34,199.28,23.776884]
[1735786526545,0.04527087,199.34,199.28,33.50424537]
[1735786526834,0.04527087,199.34,199.28,23.776884]
[1735786530553,1.6345,199.35,199.28,23.776884]
[1735786531741,0.04527087,199.34,199.28,23.776884]
[1735786544535,0.04527087,199.34,199.26,9.72736137]
[1735786544953,0.04527087,199.34,199.27,23.776884]
[1735786546643,1.6345,199.35,199.27,23.776884]
[1735786547871,0.04527087,199.34,199.27,23.776884]
[1735786552081,0.04527087,199.34,199.27,33.50424537]
[1735786552769,7.97857534,199.34,199.27,33.50424537]
[1735786554268,7.97857534,199.34,199.27,23.776884]
[1735786554458,7.97857534,199.34,199.25,9.72736137]
[1735786555047,7.97857534,199.34,199.27,23.776884]
[1735786557662,0.04527087,199.34,199.27,23.776884]